[Event "Titled Tuesday Blitz October 26 2021"]
[White "Rozen, Eytan"]
[Black "Kosteniuk, Alexandra"]
[WhiteFideId "2816750"]
[BlackFideId "4128125"]
[WhiteElo "2115"]
[BlackElo "2521"]
[Result "1-0"]
[Round "11"]
[TimeControl "180+1"]
[Date "2021.10.26"]
[WhiteClock "0:00:09"]
[BlackClock "0:00:11"]

1. c4 {[%clk 0:02:16]}  Nf6 {[%clk 0:02:59]} 2. Nc3 {[%clk 0:02:14]}  e5 {[%clk 0:02:59]} 3. Nf3 {[%clk 0:02:13]}  Nc6 {[%clk 0:02:58]} 4. e3 {[%clk 0:02:13]}  d5 {[%clk 0:02:54]} 5. cxd5 {[%clk 0:02:12]}  Nxd5 {[%clk 0:02:55]} 6. Qc2 {[%clk 0:02:09]}  Be7 {[%clk 0:02:53]} 7. a3 {[%clk 0:02:08]}  Nxc3 {[%clk 0:02:52]} 8. bxc3 {[%clk 0:02:07]}  O-O {[%clk 0:02:51]} 9. h4 {[%clk 0:02:05]}  h6 {[%clk 0:02:43]} 10. Bc4 {[%clk 0:02:03]}  Kh8 {[%clk 0:02:30]} 11. d4 {[%clk 0:02:00]}  Bf6 {[%clk 0:02:14]} 12. a4 {[%clk 0:01:41]}  Be6 {[%clk 0:02:10]} 13. Bxe6 {[%clk 0:01:36]}  fxe6 {[%clk 0:02:11]} 14. Ba3 {[%clk 0:01:35]}  Rg8 {[%clk 0:01:57]} 15. Qg6 {[%clk 0:01:20]}  Qe8 {[%clk 0:01:49]} 16. Qe4 {[%clk 0:01:16]}  exd4 {[%clk 0:01:15]} 17. cxd4 {[%clk 0:01:16]}  Qh5 {[%clk 0:01:05]} 18. g4 {[%clk 0:00:54]}  Qd5 {[%clk 0:01:05]} 19. Qxd5 {[%clk 0:00:49]}  exd5 {[%clk 0:01:06]} 20. Rb1 {[%clk 0:00:46]}  Rab8 {[%clk 0:01:02]} 21. g5 {[%clk 0:00:44]}  Bd8 {[%clk 0:01:02]} 22. Rb5 {[%clk 0:00:39]}  Be7 {[%clk 0:01:02]} 23. Bxe7 {[%clk 0:00:26]}  Nxe7 {[%clk 0:01:02]} 24. Ke2 {[%clk 0:00:24]}  c6 {[%clk 0:00:57]} 25. Rbb1 {[%clk 0:00:20]}  Kh7 {[%clk 0:00:50]} 26. Ne5 {[%clk 0:00:20]}  b6 {[%clk 0:00:34]} 27. gxh6 {[%clk 0:00:16]}  gxh6 {[%clk 0:00:34]} 28. Nd7 {[%clk 0:00:16]}  Nf5 {[%clk 0:00:30]} 29. Nxb8 {[%clk 0:00:06]}  Rxb8 {[%clk 0:00:31]} 30. h5 {[%clk 0:00:07]}  Re8 {[%clk 0:00:31]} 31. Kd3 {[%clk 0:00:06]}  Re6 {[%clk 0:00:31]} 32. Rhg1 {[%clk 0:00:05]}  Ne7 {[%clk 0:00:31]} 33. Rg2 {[%clk 0:00:05]}  Rf6 {[%clk 0:00:31]} 34. Rbg1 {[%clk 0:00:04]}  Rf7 {[%clk 0:00:32]} 35. f4 {[%clk 0:00:03]}  Kh8 {[%clk 0:00:32]} 36. a5 {[%clk 0:00:02]}  b5 {[%clk 0:00:31]} 37. a6 {[%clk 0:00:03]}  Kh7 {[%clk 0:00:32]} 38. Kc3 {[%clk 0:00:03]}  Nf5 {[%clk 0:00:30]} 39. Rg6 {[%clk 0:00:03]}  Nxe3 {[%clk 0:00:29]} 40. Rxc6 {[%clk 0:00:04]}  Nf5 {[%clk 0:00:22]} 41. Rc5 {[%clk 0:00:03]}  Nd6 {[%clk 0:00:21]} 42. Rxd5 {[%clk 0:00:04]}  Ne4+ {[%clk 0:00:19]} 43. Kb4 {[%clk 0:00:04]}  Rxf4 {[%clk 0:00:14]} 44. Rd7+ {[%clk 0:00:04]}  Kh8 {[%clk 0:00:14]} 45. Rd8+ {[%clk 0:00:05]}  Kh7 {[%clk 0:00:14]} 46. Rd7+ {[%clk 0:00:05]}  Kh8 {[%clk 0:00:15]} 47. Rxa7 {[%clk 0:00:06]}  Nf6 {[%clk 0:00:14]} 48. Ra8+ {[%clk 0:00:06]}  Kh7 {[%clk 0:00:14]} 49. Ra7+ {[%clk 0:00:07]}  Kh8 {[%clk 0:00:14]} 50. Ra8+ {[%clk 0:00:08]}  Kh7 {[%clk 0:00:15]} 51. Rd8 {[%clk 0:00:09]}  Rf2 {[%clk 0:00:11]} 52. a7 {[%clk 0:00:09]} 1-0


[Site "https://www.chess.com"]

[Event "Titled Tuesday Blitz October 26 2021"]
[White "Sadhwani, Raunak"]
[Black "Zierk, Steven"]
[WhiteFideId "35093487"]
[BlackFideId "2034255"]
[WhiteElo "2517"]
[BlackElo "2494"]
[Result "1-0"]
[Round "11"]
[TimeControl "180+1"]
[Date "2021.10.26"]
[WhiteClock "0:00:36"]
[BlackClock "0:00:03"]

1. c4 {[%clk 0:03:00]}  e5 {[%clk 0:02:56]} 2. Nc3 {[%clk 0:03:01]}  Nf6 {[%clk 0:02:54]} 3. Nf3 {[%clk 0:03:01]}  Nc6 {[%clk 0:02:54]} 4. d3 {[%clk 0:03:02]}  d5 {[%clk 0:02:53]} 5. cxd5 {[%clk 0:03:02]}  Nxd5 {[%clk 0:02:54]} 6. e4 {[%clk 0:03:03]}  Nf6 {[%clk 0:02:54]} 7. h3 {[%clk 0:03:00]}  Bc5 {[%clk 0:02:50]} 8. Be3 {[%clk 0:03:00]}  Bb6 {[%clk 0:02:50]} 9. Be2 {[%clk 0:03:00]}  O-O {[%clk 0:02:48]} 10. O-O {[%clk 0:03:01]}  Qe7 {[%clk 0:02:38]} 11. Na4 {[%clk 0:02:56]}  Be6 {[%clk 0:02:31]} 12. Nxb6 {[%clk 0:02:55]}  axb6 {[%clk 0:02:32]} 13. a3 {[%clk 0:02:56]}  Rfd8 {[%clk 0:02:30]} 14. Qc2 {[%clk 0:02:53]}  Nd7 {[%clk 0:02:25]} 15. Rac1 {[%clk 0:02:49]}  h6 {[%clk 0:02:19]} 16. Rfd1 {[%clk 0:02:38]}  f5 {[%clk 0:02:15]} 17. exf5 {[%clk 0:02:33]}  Bxf5 {[%clk 0:02:15]} 18. Qc3 {[%clk 0:02:31]}  Nf6 {[%clk 0:02:10]} 19. d4 {[%clk 0:02:12]}  Nd5 {[%clk 0:02:07]} 20. Bc4 {[%clk 0:02:12]}  e4 {[%clk 0:01:57]} 21. Ne5 {[%clk 0:02:08]}  Be6 {[%clk 0:01:53]} 22. Bxd5 {[%clk 0:01:52]}  Bxd5 {[%clk 0:01:52]} 23. Bf4 {[%clk 0:01:52]}  Nxe5 {[%clk 0:01:36]} 24. Bxe5 {[%clk 0:01:50]}  c6 {[%clk 0:01:34]} 25. Qg3 {[%clk 0:01:50]}  Kh7 {[%clk 0:01:20]} 26. Bc7 {[%clk 0:01:46]}  Re8 {[%clk 0:01:12]} 27. Rc3 {[%clk 0:01:35]}  b5 {[%clk 0:01:10]} 28. Be5 {[%clk 0:01:35]}  Qf7 {[%clk 0:01:05]} 29. Qg4 {[%clk 0:01:27]}  Re6 {[%clk 0:00:55]} 30. Rg3 {[%clk 0:01:19]}  Rg6 {[%clk 0:00:52]} 31. Qe2 {[%clk 0:01:16]}  Rf8 {[%clk 0:00:46]} 32. Qe3 {[%clk 0:01:14]}  Qf5 {[%clk 0:00:42]} 33. Rc1 {[%clk 0:01:11]}  Rf7 {[%clk 0:00:41]} 34. Rc3 {[%clk 0:01:10]}  Qh5 {[%clk 0:00:38]} 35. Qe1 {[%clk 0:01:09]}  Re6 {[%clk 0:00:32]} 36. Rg4 {[%clk 0:01:04]}  Rg6 {[%clk 0:00:28]} 37. Rcg3 {[%clk 0:00:58]}  Rxg4 {[%clk 0:00:28]} 38. Rxg4 {[%clk 0:00:58]}  Qf5 {[%clk 0:00:25]} 39. Qe3 {[%clk 0:00:54]}  Qe6 {[%clk 0:00:14]} 40. Qg3 {[%clk 0:00:52]}  Qd7 {[%clk 0:00:14]} 41. h4 {[%clk 0:00:48]}  b4 {[%clk 0:00:13]} 42. axb4 {[%clk 0:00:47]}  b5 {[%clk 0:00:14]} 43. h5 {[%clk 0:00:47]}  Qa7 {[%clk 0:00:12]} 44. Rg6 {[%clk 0:00:45]}  Kg8 {[%clk 0:00:03]} 45. Rxh6 {[%clk 0:00:42]}  Qa1+ {[%clk 0:00:03]} 46. Kh2 {[%clk 0:00:42]}  Qd1 {[%clk 0:00:03]} 47. Qg5 {[%clk 0:00:36]} 1-0


[Site "https://www.chess.com"]

[Event "Titled Tuesday Blitz October 26 2021"]
[White "Sapunov, Evgeny"]
[Black "Ferreira, Vitor Hugo Vieira"]
[WhiteFideId "4126661"]
[BlackFideId "2119765"]
[WhiteElo "2470"]
[BlackElo "2216"]
[Result "1-0"]
[Round "11"]
[TimeControl "180+1"]
[Date "2021.10.26"]
[WhiteClock "0:01:00"]
[BlackClock "0:00:05"]

1. c4 {[%clk 0:03:00]}  c6 {[%clk 0:02:59]} 2. Nf3 {[%clk 0:03:00]}  d5 {[%clk 0:02:59]} 3. b3 {[%clk 0:03:01]}  Nf6 {[%clk 0:02:58]} 4. Bb2 {[%clk 0:03:01]}  Bf5 {[%clk 0:02:55]} 5. g3 {[%clk 0:03:01]}  e6 {[%clk 0:02:55]} 6. Bg2 {[%clk 0:03:02]}  h6 {[%clk 0:02:55]} 7. O-O {[%clk 0:03:02]}  Be7 {[%clk 0:02:53]} 8. d3 {[%clk 0:03:02]}  O-O {[%clk 0:02:53]} 9. Nbd2 {[%clk 0:03:03]}  Nbd7 {[%clk 0:02:53]} 10. a3 {[%clk 0:03:02]}  a5 {[%clk 0:02:52]} 11. Bc3 {[%clk 0:03:02]}  Qb6 {[%clk 0:02:51]} 12. Qc2 {[%clk 0:02:59]}  Bh7 {[%clk 0:02:49]} 13. Qb2 {[%clk 0:02:59]}  Nc5 {[%clk 0:02:43]} 14. Bd4 {[%clk 0:02:59]}  Qc7 {[%clk 0:02:37]} 15. Rfc1 {[%clk 0:02:58]}  Ncd7 {[%clk 0:02:17]} 16. b4 {[%clk 0:02:52]}  axb4 {[%clk 0:02:16]} 17. axb4 {[%clk 0:02:53]}  dxc4 {[%clk 0:02:13]} 18. Nxc4 {[%clk 0:02:51]}  Rfc8 {[%clk 0:01:53]} 19. Nfe5 {[%clk 0:02:44]}  Nxe5 {[%clk 0:01:49]} 20. Bxe5 {[%clk 0:02:41]}  Qd8 {[%clk 0:01:47]} 21. b5 {[%clk 0:02:31]}  Rxa1 {[%clk 0:01:36]} 22. Rxa1 {[%clk 0:02:28]}  cxb5 {[%clk 0:01:19]} 23. Qxb5 {[%clk 0:02:27]}  Ra8 {[%clk 0:01:17]} 24. Rxa8 {[%clk 0:02:15]}  Qxa8 {[%clk 0:01:16]} 25. Qxb7 {[%clk 0:02:15]}  Qxb7 {[%clk 0:01:14]} 26. Bxb7 {[%clk 0:02:15]}  Nd7 {[%clk 0:01:13]} 27. Bb2 {[%clk 0:02:11]}  Bf6 {[%clk 0:01:12]} 28. Bxf6 {[%clk 0:02:09]}  Nxf6 {[%clk 0:01:12]} 29. f4 {[%clk 0:02:08]}  Kf8 {[%clk 0:01:08]} 30. h3 {[%clk 0:02:08]}  Ke7 {[%clk 0:01:08]} 31. Kf2 {[%clk 0:02:06]}  Nd7 {[%clk 0:01:08]} 32. Bf3 {[%clk 0:01:58]}  f6 {[%clk 0:01:01]} 33. e4 {[%clk 0:01:50]}  Nc5 {[%clk 0:01:01]} 34. Ke3 {[%clk 0:01:50]}  Bg8 {[%clk 0:00:52]} 35. e5 {[%clk 0:01:37]}  fxe5 {[%clk 0:00:49]} 36. fxe5 {[%clk 0:01:34]}  Bh7 {[%clk 0:00:46]} 37. d4 {[%clk 0:01:34]}  Nd7 {[%clk 0:00:43]} 38. Bg4 {[%clk 0:01:29]}  Bc2 {[%clk 0:00:38]} 39. h4 {[%clk 0:01:26]}  Bb3 {[%clk 0:00:33]} 40. Nd2 {[%clk 0:01:24]}  Bd5 {[%clk 0:00:32]} 41. Nb1 {[%clk 0:01:21]}  Nb6 {[%clk 0:00:30]} 42. Nc3 {[%clk 0:01:20]}  Bc4 {[%clk 0:00:30]} 43. Ne4 {[%clk 0:01:18]}  Nd5+ {[%clk 0:00:27]} 44. Kd2 {[%clk 0:01:17]}  Nb6 {[%clk 0:00:25]} 45. Nc5 {[%clk 0:01:17]}  Bd5 {[%clk 0:00:23]} 46. Be2 {[%clk 0:01:15]}  Nd7 {[%clk 0:00:19]} 47. Nxd7 {[%clk 0:01:07]}  Kxd7 {[%clk 0:00:19]} 48. Kc3 {[%clk 0:01:08]}  g5 {[%clk 0:00:16]} 49. hxg5 {[%clk 0:01:06]}  hxg5 {[%clk 0:00:17]} 50. Kb4 {[%clk 0:01:06]}  Kc7 {[%clk 0:00:14]} 51. Bc4 {[%clk 0:01:04]}  Kc6 {[%clk 0:00:14]} 52. Kc3 {[%clk 0:01:01]}  g4 {[%clk 0:00:11]} 53. Kd3 {[%clk 0:01:00]}  Kb6 {[%clk 0:00:05]} 54. Bxd5 {[%clk 0:00:59]}  exd5 {[%clk 0:00:06]} 55. Ke3 {[%clk 0:01:00]}  Kc6 {[%clk 0:00:05]} 56. Kf4 {[%clk 0:01:00]} 1-0


[Site "https://www.chess.com"]

[Event "Titled Tuesday Blitz October 26 2021"]
[White "Shyaamnikhil P"]
[Black "Obregon, Andres Carlos"]
[WhiteFideId "5024218"]
[BlackFideId "111724"]
[WhiteElo "2300"]
[BlackElo "2572"]
[Result "1-0"]
[Round "11"]
[TimeControl "180+1"]
[Date "2021.10.26"]
[WhiteClock "0:02:25"]
[BlackClock "0:00:52"]

1. g3 {[%clk 0:03:00]}  e5 {[%clk 0:01:01]} 2. Bg2 {[%clk 0:02:57]}  Nf6 {[%clk 0:01:00]} 3. c4 {[%clk 0:02:56]}  Bc5 {[%clk 0:01:00]} 4. Nc3 {[%clk 0:02:55]}  d6 {[%clk 0:01:00]} 5. Nf3 {[%clk 0:02:54]}  h5 {[%clk 0:01:01]} 6. h4 {[%clk 0:02:52]}  Ng4 {[%clk 0:01:01]} 7. e3 {[%clk 0:02:52]}  a6 {[%clk 0:01:01]} 8. d4 {[%clk 0:02:49]}  Ba7 {[%clk 0:01:01]} 9. dxe5 {[%clk 0:02:48]}  dxe5 {[%clk 0:01:02]} 10. Qxd8+ {[%clk 0:02:47]}  Kxd8 {[%clk 0:01:03]} 11. Ng5 {[%clk 0:02:43]}  Rf8 {[%clk 0:01:00]} 12. b3 {[%clk 0:02:37]}  f6 {[%clk 0:00:59]} 13. Ba3 {[%clk 0:02:37]}  Rg8 {[%clk 0:00:59]} 14. Rd1+ {[%clk 0:02:34]}  Ke8 {[%clk 0:00:54]} 15. Nd5 {[%clk 0:02:34]}  Bb6 {[%clk 0:00:54]} 16. Nxb6 {[%clk 0:02:32]}  cxb6 {[%clk 0:00:54]} 17. Ne4 {[%clk 0:02:32]}  Nc6 {[%clk 0:00:52]} 18. Nd6+ {[%clk 0:02:30]}  Kd7 {[%clk 0:00:52]} 19. Nb5+ {[%clk 0:02:25]} 1-0


[Site "https://www.chess.com"]

[Event "Titled Tuesday Blitz October 26 2021"]
[White "Sviridov, Valery"]
[Black "Jones, Gawain C B"]
[WhiteFideId "4120680"]
[BlackFideId "409561"]
[WhiteElo "2454"]
[BlackElo "2657"]
[Result "1-0"]
[Round "11"]
[TimeControl "180+1"]
[Date "2021.10.26"]
[WhiteClock "0:00:39"]
[BlackClock "0:00:01"]

1. Nf3 {[%clk 0:03:00]}  Nf6 {[%clk 0:02:59]} 2. g3 {[%clk 0:03:01]}  g6 {[%clk 0:02:58]} 3. Bg2 {[%clk 0:03:01]}  Bg7 {[%clk 0:02:59]} 4. O-O {[%clk 0:03:02]}  O-O {[%clk 0:03:00]} 5. c4 {[%clk 0:03:02]}  d6 {[%clk 0:03:00]} 6. Nc3 {[%clk 0:03:03]}  c5 {[%clk 0:02:59]} 7. d4 {[%clk 0:03:03]}  Nc6 {[%clk 0:03:00]} 8. b3 {[%clk 0:03:03]}  Bg4 {[%clk 0:02:59]} 9. e3 {[%clk 0:03:02]}  Nd7 {[%clk 0:02:56]} 10. Ne2 {[%clk 0:03:00]}  e5 {[%clk 0:02:55]} 11. dxe5 {[%clk 0:02:47]}  Bxf3 {[%clk 0:02:46]} 12. Bxf3 {[%clk 0:02:46]}  Ndxe5 {[%clk 0:02:47]} 13. Bxc6 {[%clk 0:02:43]}  bxc6 {[%clk 0:02:44]} 14. Rb1 {[%clk 0:02:43]}  d5 {[%clk 0:02:40]} 15. cxd5 {[%clk 0:02:39]}  cxd5 {[%clk 0:02:40]} 16. Bb2 {[%clk 0:02:37]}  d4 {[%clk 0:02:40]} 17. exd4 {[%clk 0:02:37]}  Nf3+ {[%clk 0:02:38]} 18. Kg2 {[%clk 0:02:35]}  Nxd4 {[%clk 0:02:33]} 19. Bxd4 {[%clk 0:02:33]}  cxd4 {[%clk 0:02:28]} 20. Qd3 {[%clk 0:02:33]}  Qa5 {[%clk 0:02:26]} 21. Rb2 {[%clk 0:02:25]}  Rac8 {[%clk 0:02:23]} 22. Rd1 {[%clk 0:02:21]}  Rfd8 {[%clk 0:02:15]} 23. Rbd2 {[%clk 0:02:21]}  h5 {[%clk 0:02:13]} 24. Qf3 {[%clk 0:02:16]}  Qb6 {[%clk 0:01:40]} 25. h4 {[%clk 0:02:13]}  Rd6 {[%clk 0:01:37]} 26. Nf4 {[%clk 0:02:09]}  Bh6 {[%clk 0:01:30]} 27. Nd5 {[%clk 0:02:08]}  Rxd5 {[%clk 0:01:27]} 28. Qxd5 {[%clk 0:02:09]}  Rd8 {[%clk 0:01:21]} 29. Qc4 {[%clk 0:02:08]}  Qb7+ {[%clk 0:01:16]} 30. Kg1 {[%clk 0:02:09]}  Bxd2 {[%clk 0:01:15]} 31. Rxd2 {[%clk 0:02:09]}  Qe4 {[%clk 0:01:12]} 32. Rd1 {[%clk 0:02:09]}  Qg4 {[%clk 0:01:04]} 33. Rd3 {[%clk 0:02:06]}  Kg7 {[%clk 0:00:52]} 34. b4 {[%clk 0:02:02]}  Qe4 {[%clk 0:00:42]} 35. a4 {[%clk 0:01:59]}  Qe1+ {[%clk 0:00:35]} 36. Kg2 {[%clk 0:01:59]}  Qe4+ {[%clk 0:00:31]} 37. Rf3 {[%clk 0:01:48]}  Rd7 {[%clk 0:00:28]} 38. b5 {[%clk 0:01:46]}  f5 {[%clk 0:00:21]} 39. Qd3 {[%clk 0:01:24]}  Rc7 {[%clk 0:00:20]} 40. Qxe4 {[%clk 0:01:10]}  fxe4 {[%clk 0:00:20]} 41. Rf4 {[%clk 0:01:10]}  Re7 {[%clk 0:00:14]} 42. Kf1 {[%clk 0:01:08]}  d3 {[%clk 0:00:12]} 43. Ke1 {[%clk 0:01:07]}  e3 {[%clk 0:00:12]} 44. fxe3 {[%clk 0:01:04]}  Rxe3+ {[%clk 0:00:13]} 45. Kd2 {[%clk 0:01:04]}  Rxg3 {[%clk 0:00:13]} 46. Rd4 {[%clk 0:01:05]}  Kh6 {[%clk 0:00:03]} 47. Rd7 {[%clk 0:01:03]}  Rg4 {[%clk 0:00:03]} 48. Rxa7 {[%clk 0:01:01]}  Rxh4 {[%clk 0:00:03]} 49. b6 {[%clk 0:01:01]}  Rb4 {[%clk 0:00:03]} 50. a5 {[%clk 0:01:01]}  h4 {[%clk 0:00:04]} 51. Rd7 {[%clk 0:00:48]}  h3 {[%clk 0:00:02]} 52. Rxd3 {[%clk 0:00:48]}  Rb2+ {[%clk 0:00:01]} 53. Kc3 {[%clk 0:00:48]}  Rb5 {[%clk 0:00:02]} 54. Rxh3+ {[%clk 0:00:47]}  Kg7 {[%clk 0:00:03]} 55. Kc4 {[%clk 0:00:38]}  Rxa5 {[%clk 0:00:03]} 56. b7 {[%clk 0:00:39]}  Ra4+ {[%clk 0:00:04]} 57. Kc5 {[%clk 0:00:39]}  Ra5+ {[%clk 0:00:04]} 58. Kc6 {[%clk 0:00:40]}  Ra6+ {[%clk 0:00:05]} 59. Kc7 {[%clk 0:00:40]}  Ra7 {[%clk 0:00:04]} 60. Kb6 {[%clk 0:00:39]}  Rxb7+ {[%clk 0:00:02]} 61. Kxb7 {[%clk 0:00:40]}  Kf6 {[%clk 0:00:03]} 62. Kc6 {[%clk 0:00:40]}  Kf5 {[%clk 0:00:03]} 63. Kd5 {[%clk 0:00:41]}  Kf4 {[%clk 0:00:03]} 64. Rh8 {[%clk 0:00:39]}  g5 {[%clk 0:00:03]} 65. Rf8+ {[%clk 0:00:39]}  Ke3 {[%clk 0:00:03]} 66. Rg8 {[%clk 0:00:39]}  Kf4 {[%clk 0:00:03]} 67. Kd4 {[%clk 0:00:39]}  g4 {[%clk 0:00:03]} 68. Rf8+ {[%clk 0:00:38]}  Kg3 {[%clk 0:00:03]} 69. Ke3 {[%clk 0:00:39]}  Kg2 {[%clk 0:00:03]} 70. Rg8 {[%clk 0:00:39]}  Kg3 {[%clk 0:00:02]} 71. Ke4 {[%clk 0:00:39]}  Kf2 {[%clk 0:00:01]} 1-0


[Site "https://www.chess.com"]

[Event "Titled Tuesday Blitz October 26 2021"]
[White "Timofeev, Artyom"]
[Black "Nenezic, Marko"]
[WhiteFideId "4140419"]
[BlackFideId "912123"]
[WhiteElo "2591"]
[BlackElo "2484"]
[Result "1-0"]
[Round "11"]
[TimeControl "180+1"]
[Date "2021.10.26"]
[WhiteClock "0:00:47"]
[BlackClock "0:00:14"]

1. c4 {[%clk 0:03:00]}  Nf6 {[%clk 0:02:58]} 2. Nc3 {[%clk 0:03:00]}  g6 {[%clk 0:02:59]} 3. g3 {[%clk 0:03:00]}  Bg7 {[%clk 0:02:58]} 4. Bg2 {[%clk 0:03:00]}  O-O {[%clk 0:02:59]} 5. d3 {[%clk 0:03:00]}  d6 {[%clk 0:02:59]} 6. Nf3 {[%clk 0:03:00]}  e5 {[%clk 0:02:59]} 7. O-O {[%clk 0:03:00]}  Nc6 {[%clk 0:02:59]} 8. Rb1 {[%clk 0:02:59]}  a5 {[%clk 0:02:59]} 9. b3 {[%clk 0:02:59]}  h6 {[%clk 0:02:58]} 10. Bb2 {[%clk 0:02:59]}  Re8 {[%clk 0:02:53]} 11. Nd2 {[%clk 0:02:54]}  Bg4 {[%clk 0:02:50]} 12. h3 {[%clk 0:02:53]}  Be6 {[%clk 0:02:50]} 13. Kh2 {[%clk 0:02:50]}  Qd7 {[%clk 0:02:40]} 14. Nde4 {[%clk 0:02:48]}  Nh7 {[%clk 0:02:40]} 15. Nd5 {[%clk 0:02:47]}  f5 {[%clk 0:02:39]} 16. Nec3 {[%clk 0:02:47]}  Rac8 {[%clk 0:02:28]} 17. e3 {[%clk 0:02:43]}  Qf7 {[%clk 0:02:10]} 18. Qd2 {[%clk 0:02:39]}  h5 {[%clk 0:01:58]} 19. f4 {[%clk 0:02:24]}  exf4 {[%clk 0:01:52]} 20. Nxf4 {[%clk 0:02:21]}  Kh8 {[%clk 0:01:46]} 21. d4 {[%clk 0:02:09]}  Nd8 {[%clk 0:01:45]} 22. d5 {[%clk 0:02:04]}  Bd7 {[%clk 0:01:44]} 23. Nce2 {[%clk 0:02:04]}  g5 {[%clk 0:01:37]} 24. Nd3 {[%clk 0:02:01]}  c5 {[%clk 0:01:32]} 25. e4 {[%clk 0:01:55]}  Qg6 {[%clk 0:01:19]} 26. Bxg7+ {[%clk 0:01:40]}  Kxg7 {[%clk 0:01:18]} 27. Qxa5 {[%clk 0:01:28]}  fxe4 {[%clk 0:01:12]} 28. Nf2 {[%clk 0:01:28]}  e3 {[%clk 0:01:09]} 29. Qc3+ {[%clk 0:01:27]}  Kg8 {[%clk 0:00:50]} 30. Nd3 {[%clk 0:01:27]}  Nf7 {[%clk 0:00:42]} 31. Rbe1 {[%clk 0:01:25]}  b5 {[%clk 0:00:41]} 32. Ng1 {[%clk 0:01:14]}  b4 {[%clk 0:00:40]} 33. Qc2 {[%clk 0:01:14]}  Bf5 {[%clk 0:00:38]} 34. Rxf5 {[%clk 0:01:11]}  Qxf5 {[%clk 0:00:38]} 35. Nxb4 {[%clk 0:01:12]}  Qf6 {[%clk 0:00:29]} 36. Nc6 {[%clk 0:01:09]}  h4 {[%clk 0:00:21]} 37. Ne2 {[%clk 0:01:07]}  Qf2 {[%clk 0:00:20]} 38. Rf1 {[%clk 0:01:05]}  hxg3+ {[%clk 0:00:20]} 39. Kh1 {[%clk 0:01:06]}  Kg7 {[%clk 0:00:18]} 40. Rxf2 {[%clk 0:01:04]}  gxf2 {[%clk 0:00:18]} 41. Qc3+ {[%clk 0:01:01]}  Nf6 {[%clk 0:00:19]} 42. Bf1 {[%clk 0:00:56]}  Kg6 {[%clk 0:00:17]} 43. Ng3 {[%clk 0:00:56]}  Ne5 {[%clk 0:00:16]} 44. Qc2+ {[%clk 0:00:53]}  Kf7 {[%clk 0:00:15]} 45. Qf5 {[%clk 0:00:50]}  Ng6 {[%clk 0:00:14]} 46. Nh5 {[%clk 0:00:47]} 1-0


[Site "https://www.chess.com"]

[Event "Titled Tuesday Blitz October 26 2021"]
[White "Tristan, Leonardo"]
[Black "Kovalchuk, Alexey"]
[WhiteFideId "113816"]
[BlackFideId "24154385"]
[WhiteElo "2404"]
[BlackElo "2287"]
[Result "1-0"]
[Round "11"]
[TimeControl "180+1"]
[Date "2021.10.26"]
[WhiteClock "0:00:28"]
[BlackClock "0:00:01"]

1. d4 {[%clk 0:03:00]}  d5 {[%clk 0:02:59]} 2. Nf3 {[%clk 0:03:01]}  Nf6 {[%clk 0:02:59]} 3. Bf4 {[%clk 0:03:01]}  e6 {[%clk 0:02:59]} 4. e3 {[%clk 0:03:02]}  Bd6 {[%clk 0:03:00]} 5. Bg3 {[%clk 0:03:02]}  O-O {[%clk 0:02:59]} 6. c4 {[%clk 0:03:03]}  c5 {[%clk 0:02:50]} 7. Nc3 {[%clk 0:03:03]}  Nc6 {[%clk 0:02:45]} 8. dxc5 {[%clk 0:03:01]}  Bxc5 {[%clk 0:02:46]} 9. a3 {[%clk 0:03:01]}  a6 {[%clk 0:02:21]} 10. Qc2 {[%clk 0:02:33]}  dxc4 {[%clk 0:01:37]} 11. Bxc4 {[%clk 0:02:33]}  b5 {[%clk 0:01:38]} 12. Bd3 {[%clk 0:02:26]}  Qb6 {[%clk 0:01:38]} 13. Rc1 {[%clk 0:02:18]}  Bb7 {[%clk 0:01:27]} 14. Ne4 {[%clk 0:01:45]}  Bxe3 {[%clk 0:00:44]} 15. fxe3 {[%clk 0:01:36]}  Nxe4 {[%clk 0:00:37]} 16. Bxe4 {[%clk 0:01:31]}  Qxe3+ {[%clk 0:00:37]} 17. Kf1 {[%clk 0:01:32]}  Nb4 {[%clk 0:00:16]} 18. Bxh7+ {[%clk 0:01:29]}  Kh8 {[%clk 0:00:16]} 19. axb4 {[%clk 0:01:29]}  Rac8 {[%clk 0:00:12]} 20. Re1 {[%clk 0:01:17]}  Qh6 {[%clk 0:00:06]} 21. Qb1 {[%clk 0:01:07]}  Qxh7 {[%clk 0:00:03]} 22. Qxh7+ {[%clk 0:01:07]}  Kxh7 {[%clk 0:00:04]} 23. Be5 {[%clk 0:01:04]}  Rc2 {[%clk 0:00:03]} 24. Bc3 {[%clk 0:01:04]}  Bd5 {[%clk 0:00:04]} 25. h4 {[%clk 0:00:59]}  f6 {[%clk 0:00:04]} 26. Nd2 {[%clk 0:00:48]}  e5 {[%clk 0:00:04]} 27. Ke2 {[%clk 0:00:48]}  Be6 {[%clk 0:00:01]} 28. Kd1 {[%clk 0:00:44]}  Bf5 {[%clk 0:00:01]} 29. g4 {[%clk 0:00:44]}  Bd3 {[%clk 0:00:01]} 30. Rh3 {[%clk 0:00:38]}  e4 {[%clk 0:00:01]} 31. Rxd3 {[%clk 0:00:27]}  exd3 {[%clk 0:00:01]} 32. Re7 {[%clk 0:00:28]} 1-0


[Site "https://www.chess.com"]